bitfinex/quotes_ETHUSD_20260106
["timestamp","ask_amount","ask_price","bid_price","bid_amount"]
[1767721725112,0.02177023,3217.5,3216.6,0.802]
[1767721725314,0.00133435,3217.4,3216.7,0.802]
[1767721726003,0.001,3217.9,3216.8,9.32603829]
[1767721726521,0.001,3217.9,3216.9,0.03108582]
[1767721726723,0.001,3217.9,3216.9,1.04699823]
[1767721727427,4.05567383,3219.1,3216.9,1.04699823]
[1767721727598,0.94920987,3219.1,3216.9,1.04699823]
[1767721727802,0.02177023,3218.4,3216.9,1.01591241]
[1767721728006,0.02177023,3218.4,3217.0,1.34506301]
[1767721728228,0.02177023,3218.4,3217.1,9.32516862]
[1767721728816,0.02177023,3218.4,3217.1,6.21677908]
[1767721729001,0.02177023,3217.6,3217.0,6.21696745]
[1767721729203,0.02177023,3217.8,3216.7,0.802]
[1767721729401,0.02177023,3217.6,3216.7,0.802]
[1767721729612,0.02177023,3217.2,3216.1,0.802]
[1767721730135,0.02177023,3217.2,3216.8,3.107618]
[1767721730333,0.02177023,3217.4,3216.2,6.21847336]
[1767721730531,0.02177023,3217.4,3216.1,3.10934754]
[1767721730532,0.94920987,3217.2,3216.1,3.10934754]
[1767721730834,0.02177023,3217.1,3216.1,9.63899439]
[1767721731003,0.02177023,3217.4,3216.1,9.63899439]
[1767721731204,0.02177023,3217.1,3216.1,9.63899439]
[1767721731405,0.02177023,3217.4,3216.1,12.74835044]
[1767721731613,0.02177023,3217.8,3216.2,1.27483504]
[1767721731828,0.02177023,3217.5,3216.2,1.27483504]
[1767721732328,0.02177023,3217.8,3216.3,12.4366508]
[1767721732529,0.02177023,3218.0,3216.3,15.5458135]
[1767721732831,0.02177023,3217.6,3216.3,12.4366508]
[1767721733029,0.02177023,3218.0,3216.4,1.37114858]
[1767721734005,0.02177023,3217.8,3216.4,1.37114858]
[1767721734205,0.02486634,3217.6,3216.3,3.1091627]
[1767721734405,0.02486634,3217.6,3216.2,3.10925937]
[1767721734406,0.02486634,3217.0,3216.2,3.10925937]
[1767721734650,0.02486634,3216.9,3216.2,3.10925937]
[1767721734868,0.95230598,3216.5,3213.2,0.02486634]
[1767721735026,1.66963101,3215.7,3214.2,6.22238814]
[1767721735334,0.02486634,3216.0,3214.3,0.62243881]
[1767721735532,2.62193699,3216.2,3214.3,0.62243881]
[1767721735748,0.02486634,3216.2,3214.3,0.62243881]
[1767721735944,0.02486634,3216.5,3214.3,0.62243881]
[1767721736149,1.66963101,3216.6,3214.4,0.00623453]
[1767721736324,0.19431608,3216.5,3214.4,15.55500245]
[1767721736521,1.66963101,3216.7,3215.1,0.002]
[1767721736869,0.02486634,3216.6,3215.1,0.002]
[1767721737217,0.02486634,3216.8,3215.1,0.002]
[1767721737546,0.99808012,3217.6,3215.1,0.002]
[1767721737745,0.02486634,3218.0,3215.3,6.58114179]
[1767721737971,0.02486634,3218.0,3215.4,0.78480163]
[1767721738257,0.02797898,3217.8,3215.4,0.75993529]
[1767721738419,0.02486634,3218.2,3215.5,15.5496812]
[1767721738627,0.02486634,3218.2,3215.5,18.65961744]
[1767721738927,3.13220632,3218.2,3215.5,18.65961744]
[1767721739133,3.13220632,3218.2,3215.5,15.5496812]
[1767721739134,0.02797898,3217.9,3215.5,15.5496812]
[1767721739658,0.02797898,3217.9,3215.5,18.65961744]
[1767721739956,0.02797898,3217.9,3215.6,1.86596174]
[1767721740423,3.13564506,3217.9,3215.7,15.5487141]
[1767721740624,0.99808012,3217.4,3215.7,9.32922846]
[1767721740826,1.11110936,3216.8,3215.6,6.21966793]
[1767721741027,1.11110936,3216.8,3215.1,0.002]
[1767721741028,0.02797898,3216.6,3215.1,0.002]
[1767721741338,0.02797898,3216.6,3215.6,3.10983953]
[1767721741543,0.96662577,3216.7,3215.6,3.10983953]
[1767721741721,0.02797898,3216.5,3215.6,3.10982495]
[1767721742655,0.02797898,3216.5,3215.1,0.002]
[1767721742821,0.02797898,3216.5,3215.2,0.31124136]
[1767721743023,0.93864679,3216.7,3215.2,0.31124136]
[1767721743222,0.93864679,3217.6,3215.4,5.50525847]
[1767721743545,0.02797898,3218.4,3215.2,0.31124136]
[1767721743546,0.93864679,3218.3,3215.2,0.33922034]
[1767721743847,6.24224692,3218.4,3215.2,0.33922034]
[1767721743848,0.96662577,3218.1,3215.3,0.82997898]
[1767721744049,1.79946775,3218.1,3215.3,0.82997898]
[1767721744355,0.83284198,3218.0,3215.3,0.82997898]
[1767721744566,3.10761676,3217.9,3215.4,15.5501648]
[1767721744744,3.10761676,3217.9,3215.2,0.31124136]
[1767721744745,0.93864679,3216.9,3215.2,0.31124136]
[1767721744943,0.93864679,3216.7,3215.3,9.33037848]
[1767721745258,0.02797898,3216.5,3215.3,6.22024879]
[1767721745439,0.02797898,3216.5,3215.3,3.1101191]
[1767721745440,0.96662577,3216.5,3215.3,3.1101191]
[1767721745640,0.96662577,3216.3,3215.3,6.22024879]
[1767721745843,0.96662577,3216.3,3214.4,0.802]
[1767721745844,0.02797898,3215.5,3212.4,2.76312418]
[1767721746048,0.93864679,3215.1,3212.8,3.11254341]
[1767721746244,0.02797898,3214.6,3212.6,0.96364442]
[1767721746434,0.02797898,3214.4,3212.6,0.802]
[1767721746636,4.04948047,3214.6,3212.7,9.72942177]
[1767721746943,0.02797898,3214.5,3212.7,9.72942177]
[1767721747122,0.02797898,3214.5,3212.7,12.84206845]
[1767721747326,0.93864679,3214.6,3212.7,12.84206845]
[1767721747327,0.92591378,3214.6,3212.7,12.84206845]
[1767721747550,4.03674821,3214.6,3212.7,9.72942177]
[1767721747753,7.71833956,3214.6,3212.8,1.05314218]
[1767721747929,1.4966707,3214.6,3212.8,1.05314218]
[1767721748135,0.02797898,3214.5,3212.8,1.05314218]
[1767721748456,0.92591378,3214.6,3212.8,1.05314218]
[1767721748660,0.92591378,3214.6,3212.9,12.44981168]
[1767721749043,4.74177845,3214.5,3212.9,9.33735876]
[1767721749252,0.02797898,3214.3,3212.9,9.33735876]
[1767721749556,0.96662577,3214.5,3212.9,13.38354756]
[1767721749939,0.96662577,3214.5,3212.9,10.27109464]
[1767721750127,0.96662577,3214.5,3212.7,3.11256676]
[1767721750128,0.96662577,3214.2,3212.7,3.11256676]
[1767721750329,0.02797898,3213.6,3211.5,3.11374175]
[1767721750540,0.02797898,3213.6,3211.2,3.1140702]
[1767721750742,3.13979948,3213.6,3211.3,0.31140702]
[1767721750942,0.02797898,3213.6,3211.3,0.31140702]
[1767721751142,0.02797898,3213.3,3211.3,0.31140702]
[1767721751772,0.83797898,3213.6,3211.3,0.31140702]
[1767721751969,0.81,3213.5,3211.3,0.31140702]
[1767721752184,0.02797898,3213.2,3211.4,0.01067126]
[1767721752480,0.93864679,3213.7,3211.5,0.802]
[1767721752765,0.02797898,3213.5,3211.6,15.56856395]
[1767721752933,0.93864679,3213.0,3211.5,0.802]
[1767721753130,0.02797898,3213.1,3209.6,0.802]
[1767721753131,0.02797898,3212.2,3209.6,0.802]
[1767721753351,0.02797898,3212.4,3209.6,0.802]
[1767721753560,0.81,3212.4,3211.2,3.11409259]
[1767721753837,0.03113083,3212.1,3210.9,3.11431874]
[1767721754065,0.03113083,3211.7,3209.9,0.802]
[1767721754251,0.03113083,3211.8,3208.8,0.03113083]
[1767721754453,0.03113083,3211.8,3208.4,0.03113083]
[1767721754454,0.03113083,3211.3,3210.0,6.23052958]
[1767721754653,0.03113083,3211.3,3209.5,12.46300044]
[1767721754841,0.03113083,3211.6,3209.5,15.57875055]
[1767721755048,0.03113083,3211.4,3209.6,1.63807506]
[1767721755339,3.1441651,3212.3,3209.7,0.03115555]
[1767721755577,0.03113083,3212.3,3209.7,0.03115555]
[1767721756069,3.11295794,3212.4,3209.6,1.63807506]
[1767721756070,0.03113083,3212.0,3209.6,1.63807506]
[1767721756267,0.03113083,3212.2,3209.7,1.72168256]
[1767721756464,0.81,3212.5,3209.8,0.98304311]
[1767721756688,0.93864679,3213.1,3210.3,15.57486835]
[1767721756869,0.65819957,3213.0,3210.4,0.802]
[1767721757380,0.84113083,3213.3,3210.5,0.95191228]
[1767721757537,0.03113083,3213.3,3210.7,0.03113083]
[1767721757741,0.03113083,3213.5,3210.6,0.17850431]
[1767721758172,0.68907407,3213.5,3210.7,0.802]
[1767721758375,0.68907407,3213.5,3210.7,0.81268675]
[1767721758670,0.68907407,3213.5,3210.7,0.01068675]
[1767721758856,3.11196863,3213.4,3210.8,16.374443]
[1767721759059,0.03113083,3212.3,3210.7,3.11457708]
[1767721759261,0.03113083,3212.2,3210.7,6.07416268]
[1767721759439,0.03113083,3212.0,3210.7,2.95957708]
[1767721759769,0.03113083,3211.6,3209.9,3.11535332]
[1767721759969,0.03113083,3211.4,3210.3,3.11496013]
[1767721760156,0.03113083,3211.4,3210.1,3.11508555]
[1767721760476,0.03113083,3211.6,3210.8,2.96032996]
[1767721760768,0.03113083,3211.6,3210.0,0.81501642]
[1767721760973,0.03113083,3212.0,3210.1,15.57575129]
[1767721761145,0.03113083,3212.7,3210.2,1.65109244]
[1767721761341,6.88242987,3212.8,3211.0,0.002]
[1767721761651,6.88242987,3212.8,3211.0,0.805]
[1767721761652,0.03113083,3212.5,3211.0,0.805]
[1767721761846,0.03113083,3212.5,3211.0,0.002]
[1767721762047,0.03113083,3212.1,3211.0,0.002]
[1767721762254,0.03113083,3212.3,3210.6,0.002]
[1767721762558,0.03113083,3212.1,3210.6,0.002]
[1767721762881,0.84113083,3212.1,3210.6,0.002]
[1767721763101,0.84113083,3212.1,3210.6,1.01693389]
[1767721763393,0.03113083,3212.1,3210.6,1.01693389]
[1767721763693,0.96977762,3212.5,3210.6,1.01693389]
[1767721763694,0.03113083,3212.5,3210.6,1.01693389]
[1767721764292,6.25603667,3212.9,3210.6,1.01693389]
[1767721764461,0.03113083,3212.5,3210.6,0.002]
[1767721764865,0.03113083,3212.3,3210.6,0.002]
[1767721765065,0.81,3212.2,3210.6,0.002]
[1767721765266,0.03113083,3212.3,3210.6,0.002]
[1767721765598,0.03113083,3212.5,3210.6,0.002]
[1767721765599,0.81,3212.5,3210.6,0.002]
[1767721765770,0.68883946,3212.4,3210.6,0.002]
[1767721765966,0.03113083,3212.2,3210.6,0.002]
[1767721766167,0.03113083,3211.8,3210.4,3.11487665]
[1767721766380,0.03113083,3211.8,3209.9,0.31153533]
[1767721766381,0.65770863,3211.8,3210.3,3.11490544]
[1767721766604,0.65770863,3211.7,3210.3,9.34485278]
[1767721766897,3.92332503,3212.0,3210.4,4.04936193]
[1767721767094,1.49884059,3211.9,3210.4,3.11487665]
[1767721767295,0.65770976,3211.8,3210.4,3.11487665]
[1767721767482,0.03113083,3211.7,3210.4,3.11487665]
[1767721767675,0.03113083,3211.7,3210.4,6.2297533]
[1767721767877,0.03113083,3211.7,3210.4,6.85272863]
[1767721768103,0.68892476,3211.7,3210.2,3.11501435]
[1767721768304,0.03113083,3211.5,3209.6,3.11560663]
[1767721768475,0.84113083,3211.5,3210.4,3.11484446]
[1767721768670,0.65779393,3211.4,3210.4,6.22972111]
[1767721768904,3.95576451,3211.7,3209.8,9.346333]
[1767721769216,0.03113083,3211.2,3209.9,0.803]
[1767721769405,0.03113083,3211.2,3209.8,6.2308741]
[1767721769613,0.68950438,3211.2,3209.8,6.2308741]
[1767721769922,0.03113083,3211.0,3209.4,0.002]
[1767721770074,0.03113083,3210.8,3209.7,3.1155291]
[1767721770275,0.03113083,3210.8,3209.7,3.11555539]
[1767721770478,0.03113083,3210.5,3209.4,0.0008393]
[1767721770914,0.00206,3210.8,3209.4,0.0008393]
[1767721771216,1.64491361,3212.3,3209.7,0.95191228]
[1767721771511,6.39075372,3212.2,3209.9,0.96415651]
[1767721771726,3.30875337,3212.2,3209.8,0.803]
[1767721771882,0.811,3212.1,3209.8,0.803]
[1767721772086,0.19562219,3212.2,3209.9,0.96415651]
[1767721772310,0.19562219,3212.2,3210.0,1.14087216]
[1767721772311,0.03113083,3212.2,3210.0,1.14087216]
[1767721773019,1.67604444,3212.5,3210.0,1.14087216]
[1767721773020,0.03113083,3212.5,3210.2,0.96415651]
[1767721773220,1.10318544,3212.4,3210.2,0.96415651]
[1767721773383,1.10318544,3212.5,3210.2,0.96415651]
[1767721773589,1.10318544,3212.6,3210.6,0.96415651]
[1767721773786,1.41444113,3212.7,3210.7,0.803]
[1767721774102,0.84213083,3213.0,3210.7,0.803]
[1767721774103,0.03113083,3213.0,3210.8,0.96415651]
[1767721774296,1.64491361,3213.5,3211.3,6.441436]
[1767721774615,1.64491361,3213.5,3211.4,0.6441436]
[1767721774616,1.64491361,3213.4,3211.4,0.6441436]
[1767721774931,1.64491361,3213.8,3211.7,0.96415651]
[1767721775110,3.11129801,3214.1,3212.1,5.47727949]
[1767721775410,1.66176345,3213.8,3212.2,0.803]
[1767721776786,1.66176345,3213.8,3212.3,6.22606854]
[1767721776988,1.66176345,3213.2,3212.0,3.11331526]
[1767721777194,1.66176345,3213.0,3212.2,3.11307656]
[1767721778037,1.66176345,3213.2,3212.2,6.22620774]
[1767721778329,1.66176345,3213.2,3212.2,9.33933892]
[1767721778531,1.69289428,3213.3,3212.2,9.33933892]
[1767721778688,1.66176345,3213.3,3212.2,10.27327281]
[1767721778889,0.03113083,3213.5,3212.2,13.38640399]
[1767721779290,1.69289428,3213.5,3212.2,13.38640399]
[1767721780198,7.88556009,3213.5,3212.1,3.11317006]
[1767721780399,1.66176345,3212.8,3212.0,3.11326864]
[1767721780612,1.66176345,3212.5,3211.5,0.803]
[1767721780796,0.03113083,3212.8,3211.6,3.11371279]
[1767721780998,0.03113083,3213.3,3211.6,12.45485116]
[1767721781325,0.03113083,3213.3,3211.7,1.32568501]
[1767721781816,2.21176772,3213.6,3211.7,1.32568501]
[1767721782017,2.24289855,3213.7,3211.7,1.32568501]
[1767721782219,0.03113083,3213.5,3211.7,1.32568501]
[1767721782525,0.03113083,3213.5,3211.8,0.803]
[1767721782720,0.03113083,3213.5,3211.9,0.2128685]
[1767721782925,0.03113083,3213.5,3212.0,12.45330012]
[1767721783092,0.66637678,3213.4,3212.0,9.33997509]
[1767721783293,0.66637678,3213.3,3212.0,12.45330012]
[1767721783518,0.03113083,3213.7,3212.1,0.93869359]
[1767721783828,0.03113083,3213.7,3212.2,0.803]
[1767721784620,0.01517936,3213.7,3212.2,0.803]
[1767721784796,0.01517936,3213.7,3212.3,9.33910281]
[1767721785417,0.03113083,3214.0,3212.3,15.56517135]
[1767721785621,0.97312739,3214.0,3212.4,2.43981714]
[1767721785827,0.94199656,3213.9,3212.4,2.43981714]
[1767721786194,0.03113083,3213.8,3212.4,1.63681714]
[1767721786393,0.03113083,3213.8,3211.4,8.5911775]
[1767721786394,0.03113083,3213.1,3211.1,3.11411925]
[1767721786690,0.03113083,3214.0,3212.2,13.41668123]
[1767721787020,0.03113083,3214.4,3212.5,0.96415651]
[1767721787197,0.03113083,3214.4,3212.4,15.5646868]
[1767721787198,0.03423379,3214.2,3212.6,3.42004084]
[1767721787392,0.001,3213.7,3212.7,0.96415651]
[1767721788698,0.001,3213.7,3212.8,0.803]
[1767721789108,0.001,3213.7,3212.8,3.11248423]
[1767721789705,0.001,3213.7,3212.7,3.11264402]
[1767721789990,0.001,3213.7,3212.8,3.11250764]
[1767721790196,0.001,3213.7,3212.9,0.96415651]
[1767721790395,0.001,3213.7,3213.1,0.96415651]
[1767721790627,0.001,3213.7,3212.4,0.96415651]
[1767721790931,0.03423379,3213.6,3211.8,3.11344852]
[1767721791228,0.03423379,3213.4,3211.8,3.11351889]
[1767721791527,1.74698492,3213.3,3211.8,3.11351889]
[1767721791720,0.03423379,3213.0,3211.6,0.002]
[1767721791903,0.03423379,3213.0,3211.7,3.11357746]
[1767721792108,0.81,3213.1,3211.7,6.2271933]
[1767721793029,6.2250996,3212.8,3211.6,0.002]
[1767721793540,2.55160166,3213.0,3211.6,0.96615651]
[1767721793838,6.25866923,3213.2,3211.6,0.96615651]
[1767721794443,0.03423379,3213.0,3211.6,0.96615651]
[1767721794736,0.03423379,3213.0,3211.6,0.002]
[1767721795097,3.11264668,3212.7,3211.3,2.96100161]
[1767721795433,0.66608069,3212.6,3211.4,0.96415651]
[1767721795644,0.66608069,3212.5,3211.4,0.96415651]
[1767721795807,3.14680908,3212.8,3211.4,0.96415651]
[1767721795808,0.66608069,3212.4,3211.4,0.96415651]
[1767721796008,0.66608069,3212.3,3211.4,2.05977306]
[1767721796215,0.66608069,3212.2,3211.5,0.803]
[1767721796521,0.66608069,3212.1,3211.4,0.96415651]
[1767721796767,0.66608069,3212.0,3211.4,0.96415651]
[1767721796931,0.66608069,3211.9,3211.4,0.96415651]
[1767721797104,0.66608069,3211.8,3211.4,4.07797468]
[1767721797436,3.11274126,3212.7,3211.4,7.91116701]
[1767721798097,3.11274126,3212.7,3211.4,4.79726031]
[1767721798301,3.11274126,3212.7,3211.4,7.19196208]
[1767721798502,3.11258841,3212.8,3211.4,7.19196208]
[1767721798703,3.02276772,3213.1,3211.4,7.19196208]
[1767721798704,3.92330021,3213.1,3211.5,1.01438291]
[1767721799152,7.03560042,3213.1,3211.6,6.22742558]
[1767721799637,3.92330021,3213.1,3211.6,6.22742558]
[1767721799946,7.65253059,3213.1,3211.6,3.83789364]
[1767721800157,7.65253059,3213.1,3211.5,1.01438291]
[1767721800158,10.7648308,3213.1,3211.5,1.01438291]
[1767721800305,2.21176772,3213.0,3211.7,1.81738291]
[1767721800519,3.11196863,3213.4,3211.8,1.01438291]
[1767721801057,0.812,3213.7,3211.8,1.01438291]
[1767721801058,0.001,3213.7,3211.8,1.01438291]
[1767721801370,0.001,3213.7,3212.0,1.01438291]
[1767721801519,0.001,3213.7,3212.2,1.12467794]
[1767721801823,0.001,3213.7,3212.4,1.12467794]
[1767721802220,2.21176772,3213.6,3211.9,6.22684392]
[1767721802428,2.21276772,3213.7,3212.1,1.12467794]
[1767721802633,0.001,3213.7,3212.1,1.12467794]
[1767721802830,2.6041278,3214.6,3212.5,1.12467794]
[1767721803149,6.22006592,3215.4,3212.9,1.12467794]
[1767721803452,9.36436297,3215.4,3212.9,1.12467794]
[1767721803641,9.36436297,3215.4,3213.1,1.12467794]
[1767721803822,1.27794908,3215.3,3213.3,1.12467794]
[1767721804271,0.03423379,3215.0,3213.4,0.803]
[1767721804952,1.27794908,3215.3,3213.4,1.12467794]
[1767721805152,6.22045284,3215.2,3213.5,3.11187179]
[1767721805351,0.74984019,3215.1,3213.6,0.803]
[1767721806224,0.74984019,3215.1,3213.6,1.92767794]
[1767721806444,3.1101408,3215.3,3213.6,1.92767794]
[1767721806780,6.2202816,3215.3,3213.6,1.92767794]
[1767721806959,3.11000693,3215.5,3213.7,1.12467794]
[1767721807131,3.10974282,3215.7,3213.8,7.34784054]
[1767721807321,6.21948564,3215.7,3213.8,10.45942184]
[1767721807524,3.10974282,3215.7,3213.9,1.12467794]
[1767721807719,3.10974282,3215.7,3213.8,6.2231626]
[1767721808063,0.93394392,3216.3,3213.9,0.803]
[1767721808263,7.02813206,3216.4,3214.0,1.12467794]
[1767721808646,10.13719809,3216.4,3214.1,0.803]
[1767721808831,0.03423379,3216.1,3213.8,6.2231626]
[1767721809038,0.03423379,3216.1,3214.0,1.12467794]
[1767721809354,6.88445644,3216.0,3214.2,6.22238814]
[1767721809552,0.66555098,3215.9,3214.2,7.34706608]
[1767721809768,6.21890546,3216.0,3214.1,0.19276779]
[1767721809769,0.66555098,3215.8,3214.1,0.19276779]
[1767721809933,0.66555098,3215.7,3214.1,3.11126825]
[1767721810267,0.66555098,3215.6,3214.1,3.11128715]
[1767721810565,0.66555098,3215.5,3214.1,3.11128715]
[1767721810773,0.66555098,3215.4,3214.1,6.22257802]
[1767721810934,0.66555098,3215.3,3214.1,6.22257802]
[1767721811134,0.66555098,3215.2,3214.1,6.22257802]
[1767721811335,0.66555098,3215.1,3214.1,6.22257802]
[1767721811535,0.66555098,3215.0,3214.1,3.11128715]
[1767721811807,0.66555098,3214.9,3214.1,3.11128715]
[1767721811941,0.81,3215.2,3213.7,3.91459585]
[1767721811942,0.66555098,3214.8,3213.7,3.91459585]
[1767721812146,0.66555098,3214.7,3214.0,3.11136137]
[1767721812463,0.66555098,3214.6,3214.0,4.23603931]
[1767721812769,0.66555098,3214.5,3214.0,7.34742698]
[1767721812970,0.81,3215.2,3214.0,1.12467794]
[1767721813157,0.66511721,3215.1,3213.4,3.11193609]
[1767721813359,3.77553711,3215.0,3213.5,1.12467794]
[1767721813538,0.66511721,3214.9,3213.5,1.12467794]
[1767721813739,0.66511721,3214.8,3213.5,1.12467794]
[1767721813967,0.66511721,3214.7,3213.5,1.12467794]
[1767721814170,0.66511721,3214.7,3213.4,9.75953475]
[1767721814171,0.66511721,3214.6,3213.8,1.12467794]
[1767721814358,0.001,3214.7,3213.8,1.12467794]
[1767721815468,0.001,3214.7,3213.9,7.3476469]
[1767721816356,0.001,3214.7,3214.0,1.12467794]
[1767721817298,0.18274467,3216.5,3214.6,12.44322776]
[1767721817464,0.81,3216.3,3214.8,1.12467794]
[1767721817798,3.10849295,3217.0,3214.8,1.12467794]
[1767721817948,0.03423379,3217.2,3214.8,1.12467794]
[1767721818150,7.02680398,3217.1,3215.0,1.12467794]
[1767721818379,0.03423379,3217.0,3215.0,1.12467794]
[1767721818698,0.03423379,3217.0,3214.6,9.33242082]
[1767721818699,0.03423379,3216.4,3214.6,1.12467794]
[1767721818991,0.03423379,3216.6,3214.6,1.12467794]
[1767721818992,0.81,3216.3,3214.6,1.12467794]
[1767721819316,0.03423379,3216.6,3214.7,1.12467794]
[1767721819455,7.02793874,3216.5,3214.9,1.12467794]
[1767721819651,0.03423379,3216.3,3214.9,1.12467794]
[1767721819884,0.81,3216.2,3214.9,1.12467794]
[1767721820181,0.03423379,3216.1,3214.7,3.11068465]
[1767721820483,0.03423379,3215.6,3214.3,1.12467794]
[1767721820653,0.81,3215.5,3214.3,1.12467794]
[1767721820853,0.81,3215.5,3213.7,0.002]
[1767721820854,0.81,3215.5,3213.7,1.12667794]
[1767721821048,0.03423379,3215.1,3213.7,1.12667794]
[1767721821580,3.1104199,3215.0,3213.8,3.11155123]
[1767721821788,0.31104199,3214.9,3213.8,3.11155123]
[1767721822201,0.81,3214.8,3213.7,0.002]
[1767721822503,0.03423379,3214.6,3213.4,0.002]
[1767721822790,0.03423379,3214.6,3213.4,3.11394104]
[1767721822998,0.81,3214.5,3213.4,0.002]
[1767721823206,0.03423379,3214.6,3213.4,0.002]
[1767721823393,0.81,3214.4,3213.4,0.002]
[1767721823911,0.81,3214.5,3213.4,0.002]
[1767721824072,1.20207966,3214.5,3213.4,0.002]
[1767721824664,0.03423379,3214.4,3213.0,4.23703114]
[1767721824859,0.03423379,3213.9,3212.4,1.12467794]
[1767721825062,0.81,3213.8,3212.4,1.12467794]
[1767721825669,7.03324272,3213.8,3212.4,1.12467794]
[1767721825868,0.03423379,3213.3,3212.2,3.11311427]
[1767721826477,0.66541746,3213.2,3212.3,3.11203285]
[1767721826831,2.21801951,3214.1,3212.5,1.12467794]
[1767721826983,0.03423379,3213.6,3212.4,3.11293463]
[1767721827182,3.11138767,3214.0,3212.5,0.31129346]
[1767721827493,0.81,3213.9,3212.6,3.11274357]
[1767721827696,0.81,3213.8,3212.6,10.46290865]
[1767721827872,0.03423379,3214.4,3212.8,1.12467794]
[1767721828071,3.14523458,3214.4,3212.8,1.12467794]
[1767721828289,0.43318063,3214.4,3212.8,1.12667794]
[1767721828485,0.03423379,3214.4,3212.8,1.12667794]
[1767721829186,3.14523958,3214.4,3212.8,1.12667794]
[1767721829384,0.03423379,3214.4,3212.8,1.12667794]
[1767721829581,0.03423379,3214.6,3213.0,1.12467794]
[1767721829901,2.21801951,3214.9,3213.0,1.12467794]
[1767721830194,0.81,3214.9,3213.2,1.12467794]
[1767721830397,0.03423379,3215.1,3213.4,1.12467794]
[1767721830601,0.81,3215.2,3213.4,1.12467794]
[1767721830976,6.22045284,3215.2,3213.4,1.12467794]
[1767721831181,0.03423379,3214.9,3213.4,1.12467794]
[1767721831567,0.03423379,3214.9,3213.6,1.26402554]
[1767721831772,0.81,3214.8,3213.6,1.26402554]
[1767721832179,0.81,3214.8,3213.1,1.35744896]
[1767721832384,0.81,3214.8,3213.4,3.11196286]
[1767721832385,0.03423379,3214.7,3213.4,3.11196286]
[1767721833107,0.03423379,3214.5,3213.1,3.11225505]
[1767721833307,0.03423379,3214.5,3213.0,4.37630941]
[1767721833471,3.11119407,3214.2,3213.1,3.11225918]
[1767721833668,6.22238814,3214.2,3213.1,3.11225918]
[1767721833880,0.62566219,3214.1,3213.1,3.11225918]
[1767721834406,0.62566219,3214.1,3213.0,4.37631612]
[1767721834582,0.81,3214.0,3212.8,0.002]
[1767721834786,0.81,3214.0,3213.0,6.22468283]
[1767721835271,0.81,3213.9,3213.0,3.11232678]
[1767721835471,3.11088302,3214.6,3213.2,6.22432466]
[1767721835698,0.03423379,3213.1,3211.4,1.26602554]
[1767721835896,0.03423379,3213.6,3211.4,1.26602554]
[1767721835897,0.81,3213.0,3212.2,3.11313118]
[1767721836071,0.03423379,3213.3,3212.2,6.22626236]
[1767721836397,0.03423379,3214.0,3212.3,1.26402554]
[1767721836570,0.81,3213.9,3212.3,1.26402554]
[1767721836775,0.03423379,3214.0,3212.3,1.26402554]
[1767721836999,0.03423379,3214.2,3212.3,1.26402554]
[1767721837201,0.81,3214.1,3212.3,1.26402554]
[1767721837420,0.03423379,3214.2,3212.5,1.26402554]
[1767721837601,0.03423379,3214.2,3212.4,1.83819102]
[1767721837602,0.03423379,3214.5,3212.7,1.26402554]
[1767721837784,0.02816099,3215.1,3212.8,1.26402554]
[1767721837973,0.81,3214.6,3212.8,1.26402554]
[1767721838822,0.81,3214.5,3212.8,1.26402554]
[1767721838994,0.81,3214.5,3213.0,1.26402554]
[1767721839417,0.81,3214.4,3213.0,1.26402554]
[1767721839596,0.81,3214.4,3213.2,1.26402554]
[1767721839998,3.14478561,3214.9,3213.2,1.26402554]
[1767721840296,0.81,3214.8,3213.2,1.26402554]
[1767721840631,0.02816099,3215.1,3213.1,12.44903672]
[1767721840632,0.02816099,3215.1,3213.4,1.26402554]
[1767721840917,0.81,3215.0,3213.4,1.26402554]
[1767721841589,0.001,3214.3,3213.6,1.26402554]
[1767721842699,0.81,3215.0,3214.3,1.26402554]
[1767721842898,0.81,3215.0,3213.5,12.44748716]
[1767721842899,0.81,3215.0,3213.7,1.26402554]
[1767721843203,0.03423379,3214.9,3213.7,1.26402554]
[1767721843412,0.03423379,3214.7,3213.5,3.11187179]
[1767721843586,0.03423379,3214.7,3213.1,4.37825476]
[1767721843587,6.22161388,3214.6,3213.2,7.4883502]
[1767721843786,0.62558477,3214.5,3213.2,7.4883502]
[1767721843986,0.62558477,3214.5,3213.3,1.26402554]
[1767721845222,0.81,3214.4,3213.3,1.26402554]
[1767721845721,0.81,3214.4,3213.4,6.22393726]
[1767721845884,0.81,3214.4,3213.4,7.4879628]
[1767721846090,0.81,3214.3,3213.4,7.4879628]
[1767721846325,0.03423379,3214.9,3213.5,2.32402502]
[1767721846629,3.14478841,3214.9,3213.6,1.26402554]
[1767721846989,0.81,3214.8,3213.6,1.26402554]
[1767721847493,0.03423379,3215.6,3213.6,1.26402554]
[1767721847724,0.81,3215.5,3213.6,1.26402554]
[1767721847932,0.81,3215.4,3213.8,1.26402554]
[1767721848222,0.03423379,3216.0,3213.9,1.26402554]
[1767721848223,3.10976148,3215.7,3213.9,1.26402554]
[1767721848422,6.25359971,3215.8,3213.9,1.26402554]
[1767721848601,0.81,3215.6,3213.9,1.26402554]
[1767721848801,0.81,3215.6,3213.8,0.803]
[1767721848802,0.81,3215.6,3214.1,1.26402554]
[1767721849016,0.81,3215.5,3214.1,1.26402554]
[1767721849367,0.81,3215.4,3214.1,1.26402554]
[1767721849787,0.81,3215.4,3214.3,1.26402554]
[1767721851296,0.03523379,3216.2,3214.3,1.26402554]
[1767721851498,0.81,3215.7,3214.5,1.26402554]
[1767721851698,0.03523379,3216.2,3214.5,1.26402554]
[1767721851699,0.81,3215.8,3214.5,1.26402554]
[1767721851918,0.81,3215.8,3214.7,1.26402554]
[1767721852294,0.001,3216.2,3214.9,1.26402554]
[1767721853096,3.11029503,3216.2,3214.9,1.26402554]
[1767721853299,0.001,3216.2,3214.9,1.47072809]
[1767721853904,0.001,3216.2,3215.1,1.26402554]
[1767721854424,0.001,3216.2,3215.0,15.5520995]
[1767721854425,0.81,3217.2,3215.9,1.26402554]
[1767721856029,6.21677908,3217.1,3215.9,4.37353248]
[1767721856234,0.70267791,3217.0,3215.9,4.37353248]
[1767721856732,0.41822394,3216.9,3214.8,3.11060087]
[1767721856901,0.41822394,3216.9,3215.1,3.11029034]
[1767721856902,0.03423379,3216.5,3215.1,3.11029034]
[1767721857241,0.03423379,3216.3,3214.9,1.26402554]
[1767721857533,0.03423379,3216.3,3215.4,3.11002492]
[1767721857708,0.03423379,3216.3,3214.9,1.26599805]
[1767721857709,0.81,3216.2,3214.9,1.26599805]
[1767721857897,0.03423379,3216.3,3215.0,1.26599805]
[1767721858230,3.91925937,3216.2,3215.1,1.26599805]
[1767721858428,0.03423379,3216.9,3215.2,1.26599805]